[Event "*** Titled Tuesday 3|2 Blitz"]
[Site "Chess.com"]
[Date "2016.06.07"]
[Round "7"]
[White "josiwales"]
[Black "alturas_pacificas"]
[Result "1/2-1/2"]
[WhiteElo "2122"]
[BlackElo "2173"]
[TimeControl "180+2"]
[EndTime "12:29:16 PDT"]
[Termination "Game drawn - insufficient material"]

1. e4 {[%clk 0:03:01.9]} 1... e5 {[%clk 0:03:00]} 2. Nf3 {[%clk 0:03:02.2]} 2...
Nf6 {[%clk 0:03:00.7]} 3. Nxe5 {[%clk 0:03:02.5]} 3... d6 {[%clk 0:03:01.4]} 4.
Nc4 {[%clk 0:03:03.8]} 4... Nxe4 {[%clk 0:02:50.8]} 5. Nc3 {[%clk 0:03:01]} 5...
Nxc3 {[%clk 0:02:41.2]} 6. bxc3 {[%clk 0:03:02.9]} 6... d5 {[%clk 0:02:28.4]} 7.
Ne3 {[%clk 0:03:01.5]} 7... c6 {[%clk 0:02:21]} 8. d4 {[%clk 0:03:00.3]} 8...
Bd6 {[%clk 0:02:18.3]} 9. c4 {[%clk 0:03:00.3]} 9... O-O {[%clk 0:02:16.3]} 10.
c5 {[%clk 0:02:59.4]} 10... Bc7 {[%clk 0:02:15.7]} 11. Bd3 {[%clk 0:03:00.8]}
11... Nd7 {[%clk 0:02:11.4]} 12. Nf5 {[%clk 0:02:49.7]} 12... Re8+ {[%clk
0:02:10.5]} 13. Kf1 {[%clk 0:02:50]} 13... Nf6 {[%clk 0:02:10.8]} 14. Bg5 {[%clk
0:02:49.9]} 14... Bxf5 {[%clk 0:01:55.9]} 15. Bxf5 {[%clk 0:02:48.1]} 15... h6
{[%clk 0:01:57.4]} 16. Bh4 {[%clk 0:02:47.7]} 16... Bf4 {[%clk 0:01:52]} 17. Qf3
{[%clk 0:02:44.3]} 17... Bg5 {[%clk 0:01:52.6]} 18. Bxg5 {[%clk 0:02:43.9]}
18... hxg5 {[%clk 0:01:53.3]} 19. h4 {[%clk 0:02:45.3]} 19... g4 {[%clk
0:01:51.7]} 20. Bxg4 {[%clk 0:02:45.3]} 20... Nxg4 {[%clk 0:01:53.1]} 21. Qxg4
{[%clk 0:02:45.8]} 21... Re4 {[%clk 0:01:54.7]} 22. Qg5 {[%clk 0:02:42.7]} 22...
Qxg5 {[%clk 0:01:53.3]} 23. hxg5 {[%clk 0:02:43.7]} 23... Rxd4 {[%clk
0:01:54.9]} 24. Re1 {[%clk 0:02:43.8]} 24... Re4 {[%clk 0:01:40.6]} 25. Rxe4
{[%clk 0:02:42.2]} 25... dxe4 {[%clk 0:01:42.5]} 26. Rh4 {[%clk 0:02:42.8]}
26... Re8 {[%clk 0:01:42.3]} 27. Ke2 {[%clk 0:02:39.2]} 27... f6 {[%clk
0:01:41.1]} 28. gxf6 {[%clk 0:02:39.8]} 28... gxf6 {[%clk 0:01:43]} 29. Rg4+
{[%clk 0:02:40.2]} 29... Kf7 {[%clk 0:01:44]} 30. Rh4 {[%clk 0:02:41.4]} 30...
Kg6 {[%clk 0:01:41.1]} 31. Ke3 {[%clk 0:02:40.6]} 31... f5 {[%clk 0:01:41.5]}
32. g4 {[%clk 0:02:41.7]} 32... Re5 {[%clk 0:01:38.2]} 33. gxf5+ {[%clk
0:02:42.1]} 33... Rxf5 {[%clk 0:01:24.5]} 34. Rg4+ {[%clk 0:02:31.7]} 34... Kf6
{[%clk 0:01:06.2]} 35. Rf4 {[%clk 0:02:31.1]} 35... Ke5 {[%clk 0:01:07.7]} 36.
Rxe4+ {[%clk 0:02:21.1]} 36... Kd5 {[%clk 0:01:09]} 37. f4 {[%clk 0:02:18.5]}
37... Rf7 {[%clk 0:01:07.6]} 38. Re5+ {[%clk 0:02:18.4]} 38... Kc4 {[%clk
0:01:09]} 39. f5 {[%clk 0:02:18.1]} 39... Kc3 {[%clk 0:01:09.6]} 40. Ke4 {[%clk
0:02:17.5]} 40... Kxc2 {[%clk 0:01:10.9]} 41. Re6 {[%clk 0:02:14.9]} 41... Kb2
{[%clk 0:01:09.8]} 42. a4 {[%clk 0:02:14.5]} 42... Ka3 {[%clk 0:01:11.2]} 43. a5
{[%clk 0:02:15.5]} 43... Kb4 {[%clk 0:01:12.8]} 44. Ke5 {[%clk 0:02:09.5]} 44...
Kxa5 {[%clk 0:01:09.6]} 45. f6 {[%clk 0:02:08.9]} 45... Kb5 {[%clk 0:01:10.5]}
46. Re7 {[%clk 0:02:07.6]} 46... Rf8 {[%clk 0:01:11.1]} 47. Rxb7+ {[%clk
0:02:08.4]} 47... Kxc5 {[%clk 0:01:12.5]} 48. Rxa7 {[%clk 0:02:09.6]} 48... Kb4
{[%clk 0:01:08.8]} 49. f7 {[%clk 0:02:08.9]} 49... c5 {[%clk 0:01:08.6]} 50.
Rb7+ {[%clk 0:02:02.8]} 50... Kc3 {[%clk 0:01:02.9]} 51. Ke4 {[%clk 0:01:38.6]}
51... c4 {[%clk 0:01:00.7]} 52. Rc7 {[%clk 0:01:37.7]} 52... Kb2 {[%clk
0:00:50.4]} 53. Rb7+ {[%clk 0:01:28.7]} 53... Kc2 {[%clk 0:00:45.9]} 54. Rc7
{[%clk 0:01:04]} 54... c3 {[%clk 0:00:46.2]} 55. Kd4 {[%clk 0:00:36.8]} 55...
Kd2 {[%clk 0:00:47.3]} 56. Kd5 {[%clk 0:00:14.9]} 56... c2 {[%clk 0:00:35.7]}
57. Ke6 {[%clk 0:00:15]} 57... Ra8 {[%clk 0:00:33]} 58. Ke7 {[%clk 0:00:11.3]}
58... Ra7 {[%clk 0:00:19.4]} 59. Rxa7 {[%clk 0:00:10.1]} 59... c1=Q {[%clk
0:00:20.6]} 60. f8=Q {[%clk 0:00:06.8]} 60... Qc5+ {[%clk 0:00:21.2]} 61. Ke8
{[%clk 0:00:06.8]} 61... Qxa7 {[%clk 0:00:22]} 62. Qd6+ {[%clk 0:00:08.3]} 62...
Kc3 {[%clk 0:00:21.5]} 63. Qc6+ {[%clk 0:00:09.4]} 63... Kb4 {[%clk 0:00:21.4]}
64. Qd6+ {[%clk 0:00:10.1]} 64... Kb5 {[%clk 0:00:21.8]} 65. Qd7+ {[%clk
0:00:11]} 65... Kb6 {[%clk 0:00:22.7]} 66. Qxa7+ {[%clk 0:00:10.3]} 66... Kxa7
{[%clk 0:00:23.7]} 1/2-1/2

[Event "*** Titled Tuesday 3|2 Blitz"]
[Site "Chess.com"]
[Date "2016.06.07"]
[Round "7"]
[White "PowerThinking2650"]
[Black "Winehouse83"]
[Result "0-1"]
[WhiteElo "2222"]
[BlackElo "2470"]
[TimeControl "180+2"]
[EndTime "12:30:05 PDT"]
[Termination "Winehouse83 won on time"]

1. e4 {[%clk 0:03:01.9]} 1... e5 {[%clk 0:03:00.7]} 2. Nf3 {[%clk 0:03:01.3]}
2... Nc6 {[%clk 0:03:02.2]} 3. d4 {[%clk 0:03:02.8]} 3... exd4 {[%clk
0:03:02.8]} 4. Nxd4 {[%clk 0:03:04.2]} 4... Nf6 {[%clk 0:03:03.5]} 5. Nxc6
{[%clk 0:03:04.9]} 5... bxc6 {[%clk 0:03:05]} 6. e5 {[%clk 0:03:06.2]} 6... Qe7
{[%clk 0:03:05.6]} 7. Qe2 {[%clk 0:03:07.1]} 7... Nd5 {[%clk 0:03:06.7]} 8. c4
{[%clk 0:03:08]} 8... Ba6 {[%clk 0:03:06.3]} 9. b3 {[%clk 0:03:07.7]} 9... g6
{[%clk 0:03:05.2]} 10. Bb2 {[%clk 0:03:04]} 10... Bg7 {[%clk 0:03:05.1]} 11. g3
{[%clk 0:03:04.4]} 11... O-O {[%clk 0:03:02.3]} 12. Bg2 {[%clk 0:03:05.1]} 12...
Nb6 {[%clk 0:02:58.1]} 13. O-O {[%clk 0:03:00.5]} 13... d5 {[%clk 0:02:57.9]}
14. Nd2 {[%clk 0:02:49.7]} 14... Rfe8 {[%clk 0:02:55.7]} 15. Rfe1 {[%clk
0:02:45.3]} 15... f6 {[%clk 0:02:42.8]} 16. a4 {[%clk 0:02:28]} 16... fxe5
{[%clk 0:02:35.2]} 17. a5 {[%clk 0:02:28.3]} 17... Nd7 {[%clk 0:02:35.7]} 18.
Qg4 {[%clk 0:02:22.3]} 18... Nf6 {[%clk 0:02:30.2]} 19. Qh4 {[%clk 0:02:18.6]}
19... e4 {[%clk 0:02:23.4]} 20. cxd5 {[%clk 0:02:19]} 20... cxd5 {[%clk
0:02:23.5]} 21. Rac1 {[%clk 0:02:16.4]} 21... Rac8 {[%clk 0:02:21.9]} 22. Bd4
{[%clk 0:02:12.2]} 22... c5 {[%clk 0:02:18.2]} 23. Be3 {[%clk 0:02:10.8]} 23...
Nd7 {[%clk 0:02:09.8]} 24. Bg5 {[%clk 0:02:10.5]} 24... Bf6 {[%clk 0:02:10.4]}
25. f4 {[%clk 0:02:02.2]} 25... Bxg5 {[%clk 0:02:06.2]} 26. fxg5 {[%clk
0:02:02.8]} 26... Ne5 {[%clk 0:02:04.8]} 27. Re3 {[%clk 0:01:49.7]} 27... Bd3
{[%clk 0:01:54.7]} 28. Rce1 {[%clk 0:01:46.2]} 28... Rf8 {[%clk 0:01:50]} 29.
Kh1 {[%clk 0:01:42.8]} 29... Rf2 {[%clk 0:01:48.3]} 30. Nb1 {[%clk 0:01:40.3]}
30... Rcf8 {[%clk 0:01:43.7]} 31. Nc3 {[%clk 0:01:39.3]} 31... d4 {[%clk
0:01:32.9]} 32. Rxe4 {[%clk 0:01:39.2]} 32... dxc3 {[%clk 0:01:11.4]} 33. Rxe5
{[%clk 0:01:39.8]} 33... Qd8 {[%clk 0:00:56.7]} 34. Rxc5 {[%clk 0:00:37.9]}
34... c2 {[%clk 0:00:37.7]} 35. Bd5+ {[%clk 0:00:38.2]} 35... R2f7 {[%clk
0:00:29.7]} 36. Qd4 {[%clk 0:00:28.6]} 36... Bf5 {[%clk 0:00:20.9]} 37. Bxf7+
{[%clk 0:00:20]} 37... Kxf7 {[%clk 0:00:22.8]} 38. Qc4+ {[%clk 0:00:11.7]} 38...
Kg7 {[%clk 0:00:24]} 39. Rc7+ {[%clk 0:00:12.2]} 39... Bd7 {[%clk 0:00:19.8]}
40. Qxc2 {[%clk 0:00:07.8]} 40... Rf7 {[%clk 0:00:18.9]} 41. Qc3+ {[%clk
0:00:07]} 41... Kg8 {[%clk 0:00:18.9]} 42. Rd1 {[%clk 0:00:06]} 42... Qa8+
{[%clk 0:00:18.7]} 43. Kg1 {[%clk 0:00:07.1]} 43... Bh3 {[%clk 0:00:20.2]} 44.
Rc8+ {[%clk 0:00:03.3]} 44... Qxc8 {[%clk 0:00:13]} 45. Qxc8+ {[%clk 0:00:03.7]}
45... Bxc8 {[%clk 0:00:14.9]} 46. Rd8+ {[%clk 0:00:04.8]} 46... Rf8 {[%clk
0:00:16.4]} 47. Rd6 {[%clk 0:00:05.8]} 47... a6 {[%clk 0:00:11.4]} 48. b4 {[%clk
0:00:06.7]} 48... Kf7 {[%clk 0:00:12.9]} 49. Rf6+ {[%clk 0:00:07.3]} 49... Ke7
{[%clk 0:00:13.8]} 50. Rb6 {[%clk 0:00:07]} 50... Rf5 {[%clk 0:00:12.7]} 51. h4
{[%clk 0:00:06.5]} 51... Rb5 {[%clk 0:00:12.6]} 52. Rc6 {[%clk 0:00:07.7]} 52...
Bd7 {[%clk 0:00:12.6]} 53. Rxa6 {[%clk 0:00:08.4]} 53... Rxb4 {[%clk 0:00:13.5]}
54. Ra7 {[%clk 0:00:08]} 54... Ra4 {[%clk 0:00:14.5]} 55. Kf2 {[%clk 0:00:08.4]}
55... Kd6 {[%clk 0:00:15.1]} 56. Ra6+ {[%clk 0:00:08.2]} 56... Bc6 {[%clk
0:00:15.5]} 57. Ra7 {[%clk 0:00:07.6]} 57... Ra2+ {[%clk 0:00:13.5]} 58. Ke3
{[%clk 0:00:08]} 58... Bd7 {[%clk 0:00:14.2]} 59. Kf4 {[%clk 0:00:06.4]} 59...
Rf2+ {[%clk 0:00:13.1]} 60. Ke3 {[%clk 0:00:06]} 60... Rf5 {[%clk 0:00:14]} 61.
g4 {[%clk 0:00:06]} 61... Rb5 {[%clk 0:00:14.3]} 62. a6 {[%clk 0:00:02.4]} 62...
Ra5 {[%clk 0:00:13]} 63. Ra8 {[%clk 0:00:03.5]} 63... Ra3+ {[%clk 0:00:07.5]}
64. Kf4 {[%clk 0:00:03.8]} 64... Ra4+ {[%clk 0:00:08.5]} 65. Ke3 {[%clk
0:00:04]} 65... Bxg4 {[%clk 0:00:07.5]} 66. a7 {[%clk 0:00:04.2]} 66... Kc7
{[%clk 0:00:08.6]} 67. Rh8 {[%clk 0:00:02.8]} 67... Rxa7 {[%clk 0:00:09.4]} 68.
Rxh7+ {[%clk 0:00:03.6]} 68... Kb6 {[%clk 0:00:10.6]} 0-1

[Event "*** Titled Tuesday 3|2 Blitz"]
[Site "Chess.com"]
[Date "2016.06.07"]
[Round "7"]
[White "platy3"]
[Black "Keaton87"]
[Result "1-0"]
[WhiteElo "2679"]
[BlackElo "2477"]
[TimeControl "180+2"]
[EndTime "12:30:15 PDT"]
[Termination "platy3 won by resignation"]

1. e4 {[%clk 0:03:01.9]} 1... c5 {[%clk 0:03:00.2]} 2. Nf3 {[%clk 0:03:03.1]}
2... d6 {[%clk 0:03:01.4]} 3. d4 {[%clk 0:03:04.2]} 3... Nf6 {[%clk 0:03:03]} 4.
Nc3 {[%clk 0:03:05]} 4... cxd4 {[%clk 0:03:04.7]} 5. Nxd4 {[%clk 0:03:06.9]}
5... g6 {[%clk 0:03:06.4]} 6. Be3 {[%clk 0:02:48.9]} 6... Bg7 {[%clk 0:03:07.8]}
7. Be2 {[%clk 0:02:50.2]} 7... O-O {[%clk 0:03:09.4]} 8. Qd2 {[%clk 0:02:51.6]}
8... Nc6 {[%clk 0:03:10.6]} 9. O-O-O {[%clk 0:02:53.2]} 9... Nxd4 {[%clk
0:03:10.7]} 10. Bxd4 {[%clk 0:02:54]} 10... Be6 {[%clk 0:03:12.4]} 11. h4 {[%clk
0:02:54.7]} 11... Qa5 {[%clk 0:03:13]} 12. Qg5 {[%clk 0:02:55.4]} 12... b5
{[%clk 0:03:12.3]} 13. Qxb5 {[%clk 0:02:38.4]} 13... Qc7 {[%clk 0:03:13.2]} 14.
e5 {[%clk 0:02:34.1]} 14... Ne8 {[%clk 0:02:56]} 15. Nd5 {[%clk 0:02:19]} 15...
Bxd5 {[%clk 0:02:47.8]} 16. Qxd5 {[%clk 0:02:19.6]} 16... Rc8 {[%clk 0:02:49.4]}
17. c3 {[%clk 0:02:14.8]} 17... dxe5 {[%clk 0:02:48.5]} 18. Be3 {[%clk
0:02:15.9]} 18... Nd6 {[%clk 0:02:39.9]} 19. h5 {[%clk 0:02:16.2]} 19... Nf5
{[%clk 0:02:34.7]} 20. hxg6 {[%clk 0:02:13.6]} 20... hxg6 {[%clk 0:02:34.7]} 21.
Bg5 {[%clk 0:01:58.9]} 21... e4 {[%clk 0:02:29.2]} 22. Kb1 {[%clk 0:01:45.9]}
22... Qb6 {[%clk 0:02:16.3]} 23. Qb5 {[%clk 0:01:36.1]} 23... Qxf2 {[%clk
0:02:12.4]} 24. Rdf1 {[%clk 0:01:36.4]} 24... Qxg2 {[%clk 0:02:07.9]} 25. Rhg1
{[%clk 0:01:37.1]} 25... Qh2 {[%clk 0:01:46.5]} 26. Bf4 {[%clk 0:01:37.2]} 26...
Qh4 {[%clk 0:01:17]} 27. Bg5 {[%clk 0:01:01.5]} 27... Qh2 {[%clk 0:01:17.9]} 28.
Bf4 {[%clk 0:01:01.9]} 28... Qh4 {[%clk 0:01:18.4]} 29. Bg5 {[%clk 0:00:46.7]}
29... Qh3 {[%clk 0:01:19.6]} 30. Bg4 {[%clk 0:00:43.7]} 30... Rb8 {[%clk
0:01:02.4]} 31. Bxh3 {[%clk 0:00:39.9]} 31... Rxb5 {[%clk 0:01:03.4]} 32. Bxf5
{[%clk 0:00:41.6]} 32... Bxc3 {[%clk 0:00:59.1]} 33. b3 {[%clk 0:00:27.2]} 33...
Bd4 {[%clk 0:00:50.1]} 34. Rg2 {[%clk 0:00:20.3]} 34... Rxf5 {[%clk 0:00:21.5]}
35. Rxf5 {[%clk 0:00:20.3]} 35... gxf5 {[%clk 0:00:23.4]} 36. Bxe7+ {[%clk
0:00:16.8]} 36... Bg7 {[%clk 0:00:22.2]} 37. Bf6 {[%clk 0:00:17.5]} 37... Re8
{[%clk 0:00:06.3]} 38. Rxg7+ {[%clk 0:00:09.5]} 38... Kh8 {[%clk 0:00:07.6]} 39.
Rxf7+ {[%clk 0:00:08.2]} 39... Kg8 {[%clk 0:00:09.1]} 40. Rg7+ {[%clk
0:00:09.7]} 40... Kf8 {[%clk 0:00:10.3]} 41. Kc1 {[%clk 0:00:08.4]} 41... f4
{[%clk 0:00:10.2]} 42. Rg4 {[%clk 0:00:06]} 42... f3 {[%clk 0:00:10.5]} 43. Rf4
{[%clk 0:00:06.3]} 43... Kf7 {[%clk 0:00:10.5]} 44. Bd4+ {[%clk 0:00:07]} 44...
Kg6 {[%clk 0:00:11.4]} 45. Be3 {[%clk 0:00:08]} 45... a5 {[%clk 0:00:10.9]} 46.
a3 {[%clk 0:00:08.6]} 46... Re5 {[%clk 0:00:12.3]} 47. Kb2 {[%clk 0:00:09.6]}
47... Kh5 {[%clk 0:00:07.5]} 48. b4 {[%clk 0:00:10.2]} 48... axb4 {[%clk
0:00:06.8]} 49. axb4 {[%clk 0:00:12.1]} 49... Rd5 {[%clk 0:00:07.3]} 50. Rxe4
{[%clk 0:00:10.8]} 50... Rd3 {[%clk 0:00:08.5]} 51. Kc2 {[%clk 0:00:09.1]} 51...
Ra3 {[%clk 0:00:09]} 52. Bc5 {[%clk 0:00:08.6]} 52... Kg5 {[%clk 0:00:07.8]} 53.
Kb2 {[%clk 0:00:07.2]} 53... Rd3 {[%clk 0:00:08.1]} 54. Re8 {[%clk 0:00:06.8]}
54... Kf5 {[%clk 0:00:06.5]} 55. Rf8+ {[%clk 0:00:07.9]} 55... Ke4 {[%clk
0:00:07.7]} 56. Kc2 {[%clk 0:00:09]} 56... Ra3 {[%clk 0:00:08.4]} 57. Re8+
{[%clk 0:00:09.6]} 57... Kd5 {[%clk 0:00:08.5]} 58. Rf8 {[%clk 0:00:07.4]} 58...
Kc4 {[%clk 0:00:09.2]} 59. Kd2 {[%clk 0:00:07.7]} 59... Rb3 {[%clk 0:00:06.2]}
60. Ke1 {[%clk 0:00:07.7]} 60... Kd5 {[%clk 0:00:06.9]} 61. Kf2 {[%clk
0:00:08.3]} 61... Ke4 {[%clk 0:00:08.5]} 62. Re8+ {[%clk 0:00:09.7]} 62... Kf4
{[%clk 0:00:10]} 63. Be3+ {[%clk 0:00:07.6]} 63... Kg4 {[%clk 0:00:10.7]} 64.
Rg8+ {[%clk 0:00:08.9]} 64... Kf5 {[%clk 0:00:11.4]} 65. b5 {[%clk 0:00:09.3]}
65... Ke4 {[%clk 0:00:11]} 66. Rg4+ {[%clk 0:00:10.1]} 66... Kd3 {[%clk
0:00:07.8]} 67. Rd4+ {[%clk 0:00:08.2]} 67... Kc3 {[%clk 0:00:08.5]} 68. Rd5
{[%clk 0:00:05.2]} 68... Kc4 {[%clk 0:00:10.1]} 69. Rc5+ {[%clk 0:00:06.6]}
69... Kb4 {[%clk 0:00:07.4]} 70. b6 {[%clk 0:00:06.4]} 70... Ka4 {[%clk
0:00:07.3]} 71. Rc8 {[%clk 0:00:04.9]} 71... Ka5 {[%clk 0:00:06]} 72. Kxf3
{[%clk 0:00:06.5]} 72... Ka6 {[%clk 0:00:07.2]} 73. Rc7 {[%clk 0:00:07.3]} 73...
Rd3 {[%clk 0:00:04.7]} 74. Ke4 {[%clk 0:00:08.4]} 74... Rd6 {[%clk 0:00:05.2]}
75. Ra7+ {[%clk 0:00:09.3]} 75... Kb5 {[%clk 0:00:05.6]} 76. b7 {[%clk
0:00:10.9]} 76... Rd8 {[%clk 0:00:06.4]} 77. Ra8 {[%clk 0:00:12]} 1-0

[Event "*** Titled Tuesday 3|2 Blitz"]
[Site "Chess.com"]
[Date "2016.06.07"]
[Round "8"]
[White "MinhGTrAn"]
[Black "Malev212"]
[Result "1-0"]
[WhiteElo "2632"]
[BlackElo "2270"]
[TimeControl "180+2"]
[EndTime "12:33:21 PDT"]
[Termination "MinhGTrAn won by resignation"]

1. d4 {[%clk 0:03:01.9]} 1... d6 {[%clk 0:02:58.5]} 2. e4 {[%clk 0:03:02.3]}
2... Nf6 {[%clk 0:02:58.6]} 3. Nc3 {[%clk 0:03:03.8]} 3... g6 {[%clk 0:03:00.1]}
4. f4 {[%clk 0:02:57.1]} 4... Bg7 {[%clk 0:02:58.8]} 5. Nf3 {[%clk 0:02:57.2]}
5... O-O {[%clk 0:02:59.9]} 6. Bd3 {[%clk 0:02:50.3]} 6... Na6 {[%clk
0:03:00.2]} 7. O-O {[%clk 0:02:35.8]} 7... c5 {[%clk 0:03:00.7]} 8. d5 {[%clk
0:02:35.5]} 8... Rb8 {[%clk 0:03:01.6]} 9. Kh1 {[%clk 0:02:28.4]} 9... b6 {[%clk
0:03:02.3]} 10. Qe2 {[%clk 0:02:17.1]} 10... Nc7 {[%clk 0:02:57.3]} 11. a4
{[%clk 0:02:16.8]} 11... a6 {[%clk 0:02:58]} 12. Bd2 {[%clk 0:01:57.6]} 12... b5
{[%clk 0:02:54.7]} 13. axb5 {[%clk 0:01:57.1]} 13... axb5 {[%clk 0:02:55]} 14.
Nxb5 {[%clk 0:01:58.2]} 14... Nxb5 {[%clk 0:02:51.9]} 15. Bxb5 {[%clk
0:01:58.8]} 15... Nxe4 {[%clk 0:02:52.6]} 16. Ba5 {[%clk 0:01:55.5]} 16... Rb6
{[%clk 0:02:41.9]} 17. Qxe4 {[%clk 0:01:53.2]} 1-0

[Event "*** Titled Tuesday 3|2 Blitz"]
[Site "Chess.com"]
[Date "2016.06.07"]
[Round "8"]
[White "JSPrepz"]
[Black "SabinaFoisor"]
[Result "0-1"]
[WhiteElo "2354"]
[BlackElo "2208"]
[TimeControl "180+2"]
[EndTime "12:35:02 PDT"]
[Termination "SabinaFoisor won by resignation"]

1. d4 {[%clk 0:03:01.9]} 1... d5 {[%clk 0:02:58.7]} 2. c4 {[%clk 0:03:02.3]}
2... e6 {[%clk 0:02:58.9]} 3. Nf3 {[%clk 0:03:03]} 3... Nf6 {[%clk 0:02:59]} 4.
g3 {[%clk 0:03:04.3]} 4... Be7 {[%clk 0:02:57.7]} 5. Bg2 {[%clk 0:03:05.2]} 5...
O-O {[%clk 0:02:59.3]} 6. Qc2 {[%clk 0:03:06.3]} 6... c6 {[%clk 0:02:58]} 7. O-O
{[%clk 0:03:07.3]} 7... b6 {[%clk 0:02:58.9]} 8. b3 {[%clk 0:03:08.7]} 8... Bb7
{[%clk 0:03:00.1]} 9. Bb2 {[%clk 0:03:10.2]} 9... Na6 {[%clk 0:03:00.2]} 10. Nc3
{[%clk 0:03:11.1]} 10... Rc8 {[%clk 0:02:58.8]} 11. e4 {[%clk 0:03:11.5]} 11...
c5 {[%clk 0:02:53.4]} 12. exd5 {[%clk 0:03:12.4]} 12... exd5 {[%clk 0:02:52.4]}
13. Rfd1 {[%clk 0:03:14]} 13... dxc4 {[%clk 0:02:49.2]} 14. d5 {[%clk
0:03:13.5]} 14... Nb4 {[%clk 0:02:46.3]} 15. Qf5 {[%clk 0:03:12.1]} 15... g6
{[%clk 0:02:44.1]} 16. Qe5 {[%clk 0:03:05]} 16... Nd3 {[%clk 0:02:43]} 17. Rxd3
{[%clk 0:03:02.7]} 17... cxd3 {[%clk 0:02:42.8]} 18. Ne4 {[%clk 0:02:53.4]}
18... Bxd5 {[%clk 0:02:36.5]} 19. Nxf6+ {[%clk 0:02:50.9]} 19... Bxf6 {[%clk
0:02:37.3]} 20. Qxf6 {[%clk 0:02:52.1]} 20... Qxf6 {[%clk 0:02:38.4]} 21. Bxf6
{[%clk 0:02:53.6]} 21... b5 {[%clk 0:02:33.7]} 22. Ne5 {[%clk 0:02:44.8]} 22...
Bxg2 {[%clk 0:02:29.9]} 23. Kxg2 {[%clk 0:02:45.6]} 23... c4 {[%clk 0:02:29.3]}
24. bxc4 {[%clk 0:02:36.8]} 24... bxc4 {[%clk 0:02:31.2]} 25. h4 {[%clk
0:02:28.8]} 25... Rfe8 {[%clk 0:02:29.3]} 26. g4 {[%clk 0:02:20.7]} 26... Re6
{[%clk 0:02:28.4]} 27. g5 {[%clk 0:02:22]} 27... d2 {[%clk 0:02:28.6]} 28. h5
{[%clk 0:02:13.7]} 28... c3 {[%clk 0:02:26.9]} 29. hxg6 {[%clk 0:02:14.8]} 29...
fxg6 {[%clk 0:02:25.5]} 30. Rb1 {[%clk 0:02:15.1]} 30... Rb6 {[%clk 0:02:20.1]}
31. Rd1 {[%clk 0:02:02.9]} 31... c2 {[%clk 0:02:14.7]} 32. Rxd2 {[%clk
0:02:04.3]} 32... c1=Q {[%clk 0:02:15.3]} 33. Rd7 {[%clk 0:02:06.2]} 33... Rxf6
{[%clk 0:02:14.2]} 34. gxf6 {[%clk 0:02:03.5]} 34... Qg5+ {[%clk 0:02:14.4]} 35.
Ng4 {[%clk 0:02:01.5]} 35... Qxg4+ {[%clk 0:02:14.7]} 0-1

[Event "*** Titled Tuesday 3|2 Blitz"]
[Site "Chess.com"]
[Date "2016.06.07"]
[Round "8"]
[White "northridgehawk"]
[Black "Mvpag"]
[Result "1-0"]
[WhiteElo "1893"]
[BlackElo "2082"]
[TimeControl "180+2"]
[EndTime "12:35:09 PDT"]
[Termination "northridgehawk won by resignation"]

1. e4 {[%clk 0:03:01.9]} 1... e5 {[%clk 0:03:00.1]} 2. Bc4 {[%clk 0:03:01.9]}
2... Nf6 {[%clk 0:02:55.5]} 3. Nc3 {[%clk 0:03:01.9]} 3... d6 {[%clk 0:02:55.7]}
4. d3 {[%clk 0:03:02.4]} 4... Be7 {[%clk 0:02:57.2]} 5. f4 {[%clk 0:03:02.7]}
5... O-O {[%clk 0:02:58.4]} 6. f5 {[%clk 0:03:00.7]} 6... Nc6 {[%clk 0:02:54.8]}
7. Nf3 {[%clk 0:02:57.9]} 7... Na5 {[%clk 0:02:54.3]} 8. Be3 {[%clk 0:02:51]}
8... c6 {[%clk 0:02:53.8]} 9. Qe2 {[%clk 0:02:51.3]} 9... Qc7 {[%clk 0:02:49.5]}
10. Bb3 {[%clk 0:02:52.1]} 10... b6 {[%clk 0:02:46.4]} 11. O-O-O {[%clk
0:02:51.7]} 11... d5 {[%clk 0:02:41.2]} 12. Bd2 {[%clk 0:02:49.9]} 12... Nxb3+
{[%clk 0:02:37.8]} 13. axb3 {[%clk 0:02:49.9]} 13... d4 {[%clk 0:02:32.5]} 14.
Nb1 {[%clk 0:02:47.7]} 14... a5 {[%clk 0:02:30.1]} 15. Rdg1 {[%clk 0:02:48.5]}
15... a4 {[%clk 0:02:07.1]} 16. bxa4 {[%clk 0:02:48.7]} 16... b5 {[%clk
0:02:05.6]} 17. g4 {[%clk 0:02:50.6]} 17... bxa4 {[%clk 0:02:01.5]} 18. g5
{[%clk 0:02:51.5]} 18... Nh5 {[%clk 0:02:02.4]} 19. Nxd4 {[%clk 0:02:51.7]}
19... exd4 {[%clk 0:01:57.7]} 20. Qxh5 {[%clk 0:02:51.7]} 20... a3 {[%clk
0:01:58.4]} 21. bxa3 {[%clk 0:02:51]} 21... Bxa3+ {[%clk 0:01:58.1]} 22. Nxa3
{[%clk 0:02:48.8]} 22... Rxa3 {[%clk 0:01:58.5]} 23. Kd1 {[%clk 0:02:50.1]}
23... g6 {[%clk 0:01:38.7]} 24. Qh6 {[%clk 0:02:50.7]} 24... Qe5 {[%clk
0:01:24.7]} 25. f6 {[%clk 0:02:50.4]} 1-0

[Event "*** Titled Tuesday 3|2 Blitz"]
[Site "Chess.com"]
[Date "2016.06.07"]
[Round "8"]
[White "bilelou"]
[Black "yopino"]
[Result "0-1"]
[WhiteElo "2124"]
[BlackElo "2230"]
[TimeControl "180+2"]
[EndTime "12:35:11 PDT"]
[Termination "yopino won by resignation"]

1. e4 {[%clk 0:02:51.9]} 1... c5 {[%clk 0:03:01]} 2. Nf3 {[%clk 0:02:52]} 2...
g6 {[%clk 0:03:02.1]} 3. c3 {[%clk 0:02:51.3]} 3... Bg7 {[%clk 0:03:02.3]} 4. d4
{[%clk 0:02:43.7]} 4... cxd4 {[%clk 0:03:04.2]} 5. cxd4 {[%clk 0:02:44.8]} 5...
d5 {[%clk 0:03:05.2]} 6. e5 {[%clk 0:02:44.5]} 6... Bg4 {[%clk 0:03:05.5]} 7.
Be2 {[%clk 0:02:44.9]} 7... Nc6 {[%clk 0:03:06.5]} 8. O-O {[%clk 0:02:45.1]}
8... Nh6 {[%clk 0:03:07.4]} 9. Nc3 {[%clk 0:02:46.1]} 9... Nf5 {[%clk
0:03:07.1]} 10. h3 {[%clk 0:02:46.8]} 10... Bxf3 {[%clk 0:03:07.2]} 11. Bxf3
{[%clk 0:02:47.3]} 11... e6 {[%clk 0:03:08.6]} 12. Be3 {[%clk 0:02:46.6]} 12...
O-O {[%clk 0:03:09.2]} 13. a3 {[%clk 0:02:46.1]} 13... f6 {[%clk 0:03:08.6]} 14.
Bg4 {[%clk 0:02:43.7]} 14... fxe5 {[%clk 0:03:02.4]} 15. dxe5 {[%clk 0:02:43.8]}
15... d4 {[%clk 0:03:00.3]} 16. Bxf5 {[%clk 0:02:42.1]} 16... exf5 {[%clk
0:02:15.8]} 17. Qb3+ {[%clk 0:02:41.1]} 17... Kh8 {[%clk 0:02:16.2]} 18. Rad1
{[%clk 0:02:41.3]} 18... Bxe5 {[%clk 0:02:12.4]} 19. Nb5 {[%clk 0:02:37.9]}
19... Qf6 {[%clk 0:02:04.6]} 20. Bh6 {[%clk 0:02:30.8]} 20... Rfd8 {[%clk
0:02:04.6]} 21. Rfe1 {[%clk 0:02:30.8]} 21... g5 {[%clk 0:01:51.3]} 22. Bxg5
{[%clk 0:02:14.9]} 22... Qxg5 {[%clk 0:01:51.7]} 23. Qe6 {[%clk 0:02:16.5]}
23... Re8 {[%clk 0:01:24.1]} 24. Qf7 {[%clk 0:02:08.3]} 24... Rg8 {[%clk
0:01:19.5]} 0-1